[Event "Titled Tuesday Blitz June 27 Late 2023"]
[White "Liu, Casper"]
[Black "cafu1950"]
[WhiteFideId "1454153"]
[WhiteElo "2537"]
[BlackElo "2619"]
[Result "0-1"]
[Round "11"]
[TimeControl "180+2"]
[Date "2023.06.27"]
[WhiteClock "0:03:02"]
[BlackClock "0:02:48"]
[Board "43"]

1. e4 {[%clk 0:03:00]}  c5 {[%clk 0:02:58]} 2. d4 {[%clk 0:03:01]}  cxd4 {[%clk 0:02:58]} 3. Qxd4 {[%clk 0:03:02]}  Nc6 {[%clk 0:02:58]} 4. Qe3 {[%clk 0:03:03]}  Nf6 {[%clk 0:02:57]} 5. Nc3 {[%clk 0:03:03]}  d5 {[%clk 0:02:55]} 6. Bd2 {[%clk 0:03:04]}  d4 {[%clk 0:02:55]} 7. Qg3 {[%clk 0:03:00]}  dxc3 {[%clk 0:02:55]} 8. Bxc3 {[%clk 0:03:01]}  Nxe4 {[%clk 0:02:53]} 9. Qe3 {[%clk 0:03:02]}  Nxc3 {[%clk 0:02:53]} 10. Qxc3 {[%clk 0:03:01]}  Qa5 {[%clk 0:02:54]} 11. a3 {[%clk 0:03:02]}  Qxc3+ {[%clk 0:02:54]} 12. bxc3 {[%clk 0:03:02]}  e6 {[%clk 0:02:54]} 13. O-O-O {[%clk 0:03:03]}  Bxa3+ {[%clk 0:02:54]} 14. Kb1 {[%clk 0:03:04]}  O-O {[%clk 0:02:54]} 15. Bb5 {[%clk 0:03:05]}  a6 {[%clk 0:02:54]} 16. Bd3 {[%clk 0:03:06]}  Ne5 {[%clk 0:02:52]} 17. Be4 {[%clk 0:03:06]}  Bd7 {[%clk 0:02:47]} 18. f4 {[%clk 0:03:06]}  Bc6 {[%clk 0:02:48]} 19. Bxc6 {[%clk 0:03:02]}  Nxc6 {[%clk 0:02:48]} 20. Nf3 {[%clk 0:03:02]}  Rfd8 {[%clk 0:02:48]} 21. Rd7 {[%clk 0:03:02]}  Rxd7 {[%clk 0:02:48]} 0-1


[Site "https://www.chess.com"]

[Event "Titled Tuesday Blitz June 27 Late 2023"]
[White "Bruedigam, Martin"]
[Black "Grinev, Valeriy"]
[WhiteFideId "24608033"]
[BlackFideId "14117517"]
[WhiteElo "2529"]
[BlackElo "2616"]
[Result "1-0"]
[Round "11"]
[TimeControl "180+2"]
[Date "2023.06.27"]
[WhiteClock "0:00:05"]
[BlackClock "0:00:25"]
[Board "44"]

1. c4 {[%clk 0:03:00]}  c5 {[%clk 0:02:51]} 2. b3 {[%clk 0:02:58]}  Nc6 {[%clk 0:02:51]} 3. Bb2 {[%clk 0:02:58]}  Nf6 {[%clk 0:02:52]} 4. Bxf6 {[%clk 0:02:57]}  exf6 {[%clk 0:02:51]} 5. Nc3 {[%clk 0:02:57]}  d6 {[%clk 0:02:48]} 6. g3 {[%clk 0:02:57]}  g6 {[%clk 0:02:47]} 7. Bg2 {[%clk 0:02:58]}  Bg7 {[%clk 0:02:48]} 8. e3 {[%clk 0:02:58]}  O-O {[%clk 0:02:48]} 9. Nge2 {[%clk 0:02:58]}  f5 {[%clk 0:02:49]} 10. O-O {[%clk 0:02:55]}  Be6 {[%clk 0:02:49]} 11. d4 {[%clk 0:02:55]}  cxd4 {[%clk 0:02:49]} 12. exd4 {[%clk 0:02:56]}  Bd7 {[%clk 0:02:48]} 13. Nd5 {[%clk 0:02:51]}  Re8 {[%clk 0:02:46]} 14. Rc1 {[%clk 0:02:46]}  Qa5 {[%clk 0:02:39]} 15. Ndc3 {[%clk 0:02:40]}  f4 {[%clk 0:02:32]} 16. Nxf4 {[%clk 0:02:26]}  Nxd4 {[%clk 0:02:31]} 17. Bxb7 {[%clk 0:02:26]}  Rab8 {[%clk 0:02:30]} 18. Bg2 {[%clk 0:02:26]}  Bf5 {[%clk 0:02:19]} 19. Nfd5 {[%clk 0:02:16]}  h5 {[%clk 0:02:07]} 20. Re1 {[%clk 0:02:12]}  Bg4 {[%clk 0:02:01]} 21. Qd3 {[%clk 0:01:54]}  Bf5 {[%clk 0:01:50]} 22. Qd2 {[%clk 0:01:51]}  Kh7 {[%clk 0:01:42]} 23. Rxe8 {[%clk 0:01:16]}  Rxe8 {[%clk 0:01:40]} 24. Re1 {[%clk 0:01:15]}  Rxe1+ {[%clk 0:01:34]} 25. Qxe1 {[%clk 0:01:16]}  Nc2 {[%clk 0:01:31]} 26. Qd2 {[%clk 0:01:11]}  Nb4 {[%clk 0:01:31]} 27. Ne4 {[%clk 0:01:04]}  Bxe4 {[%clk 0:01:25]} 28. Bxe4 {[%clk 0:00:46]}  Nc6 {[%clk 0:01:26]} 29. Qg5 {[%clk 0:00:31]}  Ne5 {[%clk 0:01:17]} 30. Qxh5+ {[%clk 0:00:29]}  Kg8 {[%clk 0:01:16]} 31. Qe2 {[%clk 0:00:27]}  f5 {[%clk 0:01:08]} 32. Bg2 {[%clk 0:00:26]}  Qc5 {[%clk 0:00:59]} 33. h3 {[%clk 0:00:26]}  a5 {[%clk 0:00:59]} 34. Kh2 {[%clk 0:00:26]}  a4 {[%clk 0:00:59]} 35. Nf4 {[%clk 0:00:20]}  Kh7 {[%clk 0:00:52]} 36. Bd5 {[%clk 0:00:17]}  a3 {[%clk 0:00:47]} 37. Ne6 {[%clk 0:00:17]}  Qb4 {[%clk 0:00:45]} 38. Ng5+ {[%clk 0:00:17]}  Kh8 {[%clk 0:00:39]} 39. f4 {[%clk 0:00:17]}  Qc3 {[%clk 0:00:36]} 40. fxe5 {[%clk 0:00:16]}  Bxe5 {[%clk 0:00:36]} 41. Nf7+ {[%clk 0:00:15]}  Kg7 {[%clk 0:00:37]} 42. Nxe5 {[%clk 0:00:15]}  dxe5 {[%clk 0:00:38]} 43. c5 {[%clk 0:00:11]}  e4 {[%clk 0:00:31]} 44. c6 {[%clk 0:00:11]}  Qb2 {[%clk 0:00:27]} 45. Bc4 {[%clk 0:00:11]}  Qe5 {[%clk 0:00:23]} 46. Qf2 {[%clk 0:00:06]}  e3 {[%clk 0:00:23]} 47. Qe2 {[%clk 0:00:07]}  f4 {[%clk 0:00:22]} 48. gxf4 {[%clk 0:00:06]}  Qxf4+ {[%clk 0:00:23]} 49. Kg2 {[%clk 0:00:06]}  Qe4+ {[%clk 0:00:24]} 50. Kg1 {[%clk 0:00:06]}  Qxc6 {[%clk 0:00:23]} 51. Qxe3 {[%clk 0:00:07]}  Qf6 {[%clk 0:00:23]} 52. Qf2 {[%clk 0:00:07]}  Qa1+ {[%clk 0:00:22]} 53. Kg2 {[%clk 0:00:07]}  Qe5 {[%clk 0:00:20]} 54. Be2 {[%clk 0:00:06]}  Qb2 {[%clk 0:00:17]} 55. Bf3 {[%clk 0:00:05]}  Qe5 {[%clk 0:00:18]} 56. b4 {[%clk 0:00:03]}  Qg5+ {[%clk 0:00:19]} 57. Kh1 {[%clk 0:00:02]}  Qc1+ {[%clk 0:00:18]} 58. Kg2 {[%clk 0:00:03]}  Qb2 {[%clk 0:00:19]} 59. Qxb2+ {[%clk 0:00:02]}  axb2 {[%clk 0:00:20]} 60. Be4 {[%clk 0:00:03]}  Kf6 {[%clk 0:00:19]} 61. Bb1 {[%clk 0:00:03]}  g5 {[%clk 0:00:19]} 62. b5 {[%clk 0:00:04]}  Ke5 {[%clk 0:00:20]} 63. b6 {[%clk 0:00:04]}  Kd6 {[%clk 0:00:21]} 64. a4 {[%clk 0:00:04]}  Kc5 {[%clk 0:00:21]} 65. a5 {[%clk 0:00:05]}  Kb5 {[%clk 0:00:21]} 66. Kg3 {[%clk 0:00:05]}  Kxa5 {[%clk 0:00:22]} 67. b7 {[%clk 0:00:04]}  Kb4 {[%clk 0:00:23]} 68. b8=Q+ {[%clk 0:00:05]}  Kc3 {[%clk 0:00:24]} 69. Qg8 {[%clk 0:00:04]}  Kd2 {[%clk 0:00:25]} 70. Qg6 {[%clk 0:00:04]}  Kc1 {[%clk 0:00:25]} 71. Qc2# {[%clk 0:00:05]} 1-0


[Site "https://www.chess.com"]

[Event "Titled Tuesday Blitz June 27 Late 2023"]
[White "Jovic, Stanoje"]
[Black "Gubajdullin, Alexei"]
[WhiteFideId "905020"]
[BlackFideId "4141202"]
[WhiteElo "2525"]
[BlackElo "2611"]
[Result "0-1"]
[Round "11"]
[TimeControl "180+2"]
[Date "2023.06.27"]
[WhiteClock "0:00:00"]
[BlackClock "0:00:43"]
[Board "45"]

1. c4 {[%clk 0:03:00]}  Nf6 {[%clk 0:02:57]} 2. g3 {[%clk 0:03:01]}  g6 {[%clk 0:02:57]} 3. Bg2 {[%clk 0:03:01]}  Bg7 {[%clk 0:02:57]} 4. Nc3 {[%clk 0:03:01]}  O-O {[%clk 0:02:57]} 5. Nf3 {[%clk 0:03:01]}  d6 {[%clk 0:02:57]} 6. O-O {[%clk 0:03:01]}  Nc6 {[%clk 0:02:57]} 7. d3 {[%clk 0:03:01]}  e5 {[%clk 0:02:56]} 8. Rb1 {[%clk 0:03:01]}  h6 {[%clk 0:02:56]} 9. b4 {[%clk 0:03:00]}  a6 {[%clk 0:02:44]} 10. a4 {[%clk 0:02:59]}  Be6 {[%clk 0:02:31]} 11. b5 {[%clk 0:02:59]}  axb5 {[%clk 0:02:31]} 12. axb5 {[%clk 0:02:59]}  Ne7 {[%clk 0:02:31]} 13. e4 {[%clk 0:02:57]}  b6 {[%clk 0:02:29]} 14. h3 {[%clk 0:02:55]}  Nd7 {[%clk 0:02:27]} 15. Be3 {[%clk 0:02:51]}  f5 {[%clk 0:02:24]} 16. Nd5 {[%clk 0:02:43]}  Ra3 {[%clk 0:02:14]} 17. Ra1 {[%clk 0:02:27]}  Rxa1 {[%clk 0:02:08]} 18. Qxa1 {[%clk 0:02:26]}  f4 {[%clk 0:02:06]} 19. gxf4 {[%clk 0:02:19]}  exf4 {[%clk 0:02:03]} 20. Bd4 {[%clk 0:02:19]}  Bxd4 {[%clk 0:01:53]} 21. Nxd4 {[%clk 0:02:16]}  Nc5 {[%clk 0:01:29]} 22. Qa7 {[%clk 0:02:04]}  Nxd5 {[%clk 0:01:19]} 23. cxd5 {[%clk 0:01:59]}  Bd7 {[%clk 0:01:18]} 24. Rc1 {[%clk 0:01:03]}  f3 {[%clk 0:01:17]} 25. Nxf3 {[%clk 0:00:52]}  Rxf3 {[%clk 0:01:15]} 26. Bxf3 {[%clk 0:00:52]}  Qg5+ {[%clk 0:01:15]} 27. Kh2 {[%clk 0:00:50]}  Qxc1 {[%clk 0:01:12]} 28. Qxc7 {[%clk 0:00:49]}  Qf4+ {[%clk 0:01:09]} 29. Kg2 {[%clk 0:00:48]}  Bxh3+ {[%clk 0:00:54]} 30. Kxh3 {[%clk 0:00:48]}  Qxf3+ {[%clk 0:00:53]} 31. Kh2 {[%clk 0:00:48]}  Qxf2+ {[%clk 0:00:53]} 32. Kh1 {[%clk 0:00:48]}  Nxd3 {[%clk 0:00:48]} 33. Qd8+ {[%clk 0:00:30]}  Qf8 {[%clk 0:00:46]} 34. Qxb6 {[%clk 0:00:27]}  Nf2+ {[%clk 0:00:45]} 35. Kg2 {[%clk 0:00:26]}  Nxe4 {[%clk 0:00:45]} 36. Qd4 {[%clk 0:00:23]}  Qf4 {[%clk 0:00:44]} 37. b6 {[%clk 0:00:20]}  Qg4+ {[%clk 0:00:44]} 38. Kh2 {[%clk 0:00:18]}  Qg3+ {[%clk 0:00:44]} 39. Kh1 {[%clk 0:00:05]}  Nf2+ {[%clk 0:00:43]} 40. Qxf2 {[%clk 0:00:01]}  Qxf2 {[%clk 0:00:43]} 41. b7 {[%clk 0:00:00]}  Qb6 {[%clk 0:00:43]} 0-1


[Site "https://www.chess.com"]

[Event "Titled Tuesday Blitz June 27 Late 2023"]
[White "Fantinel, Thibault"]
[Black "Czerw, Dawid"]
[WhiteFideId "663395"]
[BlackFideId "1145746"]
[WhiteElo "2594"]
[BlackElo "2505"]
[Result "0-1"]
[Round "11"]
[TimeControl "180+2"]
[Date "2023.06.27"]
[WhiteClock "0:00:02"]
[BlackClock "0:00:03"]
[Board "47"]

1. c4 {[%clk 0:03:00]}  c6 {[%clk 0:02:59]} 2. g3 {[%clk 0:02:55]}  d5 {[%clk 0:02:58]} 3. Nf3 {[%clk 0:02:56]}  Nf6 {[%clk 0:02:58]} 4. Bg2 {[%clk 0:02:56]}  Bg4 {[%clk 0:02:59]} 5. Ne5 {[%clk 0:02:56]}  Bh5 {[%clk 0:02:58]} 6. cxd5 {[%clk 0:02:56]}  cxd5 {[%clk 0:02:58]} 7. Qa4+ {[%clk 0:02:57]}  Nbd7 {[%clk 0:02:55]} 8. Nc3 {[%clk 0:02:57]}  e6 {[%clk 0:02:50]} 9. g4 {[%clk 0:02:58]}  Bg6 {[%clk 0:02:49]} 10. h4 {[%clk 0:02:59]}  h5 {[%clk 0:02:31]} 11. Nxg6 {[%clk 0:02:57]}  fxg6 {[%clk 0:02:32]} 12. g5 {[%clk 0:02:58]}  Ng8 {[%clk 0:02:30]} 13. Qc2 {[%clk 0:02:52]}  Ne7 {[%clk 0:02:29]} 14. d4 {[%clk 0:02:29]}  Nf5 {[%clk 0:02:25]} 15. Qd3 {[%clk 0:02:24]}  Qb6 {[%clk 0:02:22]} 16. e4 {[%clk 0:02:16]}  dxe4 {[%clk 0:02:20]} 17. Bxe4 {[%clk 0:02:14]}  Bb4 {[%clk 0:02:16]} 18. O-O {[%clk 0:02:05]}  O-O {[%clk 0:02:14]} 19. Be3 {[%clk 0:02:05]}  Qd6 {[%clk 0:02:04]} 20. Nb5 {[%clk 0:01:51]}  Qe7 {[%clk 0:01:55]} 21. a3 {[%clk 0:01:30]}  Bd6 {[%clk 0:01:54]} 22. Rac1 {[%clk 0:01:13]}  a6 {[%clk 0:01:44]} 23. Nxd6 {[%clk 0:01:09]}  Qxd6 {[%clk 0:01:45]} 24. Qb3 {[%clk 0:01:07]}  Nxh4 {[%clk 0:01:38]} 25. Qb4 {[%clk 0:01:05]}  Qxb4 {[%clk 0:01:05]} 26. axb4 {[%clk 0:01:05]}  Nb6 {[%clk 0:00:57]} 27. Rc7 {[%clk 0:01:02]}  Nd5 {[%clk 0:00:55]} 28. Rxb7 {[%clk 0:00:56]}  Rac8 {[%clk 0:00:50]} 29. Rc1 {[%clk 0:00:50]}  Rxc1+ {[%clk 0:00:41]} 30. Bxc1 {[%clk 0:00:51]}  Nf4 {[%clk 0:00:36]} 31. Be3 {[%clk 0:00:39]}  Ne2+ {[%clk 0:00:25]} 32. Kh2 {[%clk 0:00:38]}  Rd8 {[%clk 0:00:21]} 33. Rb6 {[%clk 0:00:26]}  Nxd4 {[%clk 0:00:20]} 34. Rxa6 {[%clk 0:00:26]}  Nhf5 {[%clk 0:00:17]} 35. Bxf5 {[%clk 0:00:23]}  gxf5 {[%clk 0:00:13]} 36. Bxd4 {[%clk 0:00:20]}  Rxd4 {[%clk 0:00:13]} 37. Rxe6 {[%clk 0:00:21]}  Kf7 {[%clk 0:00:14]} 38. Rb6 {[%clk 0:00:17]}  Rg4 {[%clk 0:00:10]} 39. f4 {[%clk 0:00:15]}  Rxf4 {[%clk 0:00:09]} 40. g6+ {[%clk 0:00:15]}  Ke7 {[%clk 0:00:09]} 41. b5 {[%clk 0:00:10]}  Rb4 {[%clk 0:00:08]} 42. Kg3 {[%clk 0:00:10]}  h4+ {[%clk 0:00:06]} 43. Kh3 {[%clk 0:00:11]}  Kd7 {[%clk 0:00:01]} 44. Rb7+ {[%clk 0:00:09]}  Ke6 {[%clk 0:00:01]} 45. Rxg7 {[%clk 0:00:08]}  Kf6 {[%clk 0:00:02]} 46. Rb7 {[%clk 0:00:03]}  Kxg6 {[%clk 0:00:02]} 47. b6 {[%clk 0:00:04]}  Kg5 {[%clk 0:00:02]} 48. Rb8 {[%clk 0:00:03]}  Kf4 {[%clk 0:00:02]} 49. Kxh4 {[%clk 0:00:02]}  Rxb2 {[%clk 0:00:03]} 50. b7 {[%clk 0:00:02]}  Rh2# {[%clk 0:00:03]} 0-1


[Site "https://www.chess.com"]

[Event "Titled Tuesday Blitz June 27 Late 2023"]
[White "Bjelobrk, Igor"]
[Black "Tomaszewski, Kacper"]
[WhiteFideId "4300726"]
[BlackFideId "1127373"]
[WhiteElo "2578"]
[BlackElo "2478"]
[Result "1-0"]
[Round "11"]
[TimeControl "180+2"]
[Date "2023.06.27"]
[WhiteClock "0:00:14"]
[BlackClock "0:00:10"]
[Board "49"]

1. d4 {[%clk 0:02:57]}  Nf6 {[%clk 0:02:58]} 2. c4 {[%clk 0:02:56]}  e6 {[%clk 0:02:59]} 3. g3 {[%clk 0:02:56]}  d5 {[%clk 0:02:53]} 4. Nf3 {[%clk 0:02:56]}  c5 {[%clk 0:02:52]} 5. cxd5 {[%clk 0:02:51]}  cxd4 {[%clk 0:02:52]} 6. Bg2 {[%clk 0:02:41]}  Qxd5 {[%clk 0:02:50]} 7. Qxd4 {[%clk 0:02:36]}  Nc6 {[%clk 0:02:49]} 8. Qxd5 {[%clk 0:02:34]}  Nxd5 {[%clk 0:02:49]} 9. O-O {[%clk 0:02:34]}  Be7 {[%clk 0:02:40]} 10. e4 {[%clk 0:02:30]}  Nb6 {[%clk 0:02:39]} 11. Nc3 {[%clk 0:02:29]}  O-O {[%clk 0:02:39]} 12. Bf4 {[%clk 0:02:26]}  Rd8 {[%clk 0:02:22]} 13. Rfd1 {[%clk 0:02:23]}  Nc4 {[%clk 0:02:14]} 14. b3 {[%clk 0:02:20]}  Rxd1+ {[%clk 0:01:24]} 15. Rxd1 {[%clk 0:02:19]}  e5 {[%clk 0:01:12]} 16. Bc1 {[%clk 0:02:12]}  Nb6 {[%clk 0:01:09]} 17. Nd5 {[%clk 0:02:10]}  f6 {[%clk 0:01:05]} 18. Nxe7+ {[%clk 0:02:07]}  Nxe7 {[%clk 0:01:05]} 19. Rd8+ {[%clk 0:02:06]}  Kf7 {[%clk 0:01:05]} 20. Be3 {[%clk 0:01:46]}  Nc6 {[%clk 0:01:04]} 21. Rh8 {[%clk 0:01:25]}  h6 {[%clk 0:01:03]} 22. Bxb6 {[%clk 0:01:08]}  axb6 {[%clk 0:01:02]} 23. Bf1 {[%clk 0:01:08]}  Rb8 {[%clk 0:00:49]} 24. Nd2 {[%clk 0:00:35]}  Be6 {[%clk 0:00:48]} 25. Rxb8 {[%clk 0:00:35]}  Nxb8 {[%clk 0:00:48]} 26. f4 {[%clk 0:00:33]}  exf4 {[%clk 0:00:44]} 27. gxf4 {[%clk 0:00:33]}  f5 {[%clk 0:00:39]} 28. exf5 {[%clk 0:00:32]}  Bxf5 {[%clk 0:00:39]} 29. Nc4 {[%clk 0:00:33]}  Bb1 {[%clk 0:00:28]} 30. a3 {[%clk 0:00:28]}  Nd7 {[%clk 0:00:28]} 31. Nd6+ {[%clk 0:00:27]}  Ke7 {[%clk 0:00:28]} 32. Nxb7 {[%clk 0:00:25]}  Bc2 {[%clk 0:00:27]} 33. b4 {[%clk 0:00:25]}  Be4 {[%clk 0:00:24]} 34. Bg2 {[%clk 0:00:25]}  Bxg2 {[%clk 0:00:22]} 35. Kxg2 {[%clk 0:00:26]}  Nf6 {[%clk 0:00:22]} 36. a4 {[%clk 0:00:20]}  Kd7 {[%clk 0:00:16]} 37. a5 {[%clk 0:00:19]}  Kc7 {[%clk 0:00:15]} 38. a6 {[%clk 0:00:20]}  Nd5 {[%clk 0:00:15]} 39. b5 {[%clk 0:00:16]}  Nc3 {[%clk 0:00:15]} 40. Nd6 {[%clk 0:00:15]}  Kb8 {[%clk 0:00:07]} 41. Kf3 {[%clk 0:00:14]}  g5 {[%clk 0:00:06]} 42. f5 {[%clk 0:00:14]}  Nd5 {[%clk 0:00:05]} 43. Ke4 {[%clk 0:00:12]}  Nf6+ {[%clk 0:00:05]} 44. Kd4 {[%clk 0:00:12]}  Ng4 {[%clk 0:00:05]} 45. h3 {[%clk 0:00:12]}  Nf6 {[%clk 0:00:06]} 46. Ke5 {[%clk 0:00:12]}  Nd7+ {[%clk 0:00:06]} 47. Kd5 {[%clk 0:00:13]}  Nf6+ {[%clk 0:00:03]} 48. Ke6 {[%clk 0:00:13]}  h5 {[%clk 0:00:04]} 49. Kxf6 {[%clk 0:00:13]}  g4 {[%clk 0:00:05]} 50. hxg4 {[%clk 0:00:13]}  h4 {[%clk 0:00:06]} 51. Ne4 {[%clk 0:00:12]}  h3 {[%clk 0:00:06]} 52. Nf2 {[%clk 0:00:12]}  h2 {[%clk 0:00:06]} 53. g5 {[%clk 0:00:12]}  Ka7 {[%clk 0:00:07]} 54. Nh1 {[%clk 0:00:13]}  Kb8 {[%clk 0:00:08]} 55. g6 {[%clk 0:00:13]}  Ka7 {[%clk 0:00:08]} 56. Ke6 {[%clk 0:00:14]}  Kb8 {[%clk 0:00:09]} 57. Kd6 {[%clk 0:00:14]}  Ka7 {[%clk 0:00:09]} 58. Kc6 {[%clk 0:00:15]}  Kb8 {[%clk 0:00:10]} 59. Kxb6 {[%clk 0:00:15]}  Ka8 {[%clk 0:00:10]} 60. g7 {[%clk 0:00:14]} 1-0


[Site "https://www.chess.com"]

[Event "Titled Tuesday Blitz June 27 Late 2023"]
[White "Cruz, Jonathan"]
[Black "ArchibaldCerveza29"]
[WhiteFideId "3802124"]
[WhiteElo "2765"]
[BlackElo "2520"]
[Result "0-1"]
[Round "11"]
[TimeControl "180+2"]
[Date "2023.06.27"]
[WhiteClock "0:00:22"]
[BlackClock "0:00:24"]
[Board "52"]

1. Nf3 {[%clk 0:02:59]}  d5 {[%clk 0:02:59]} 2. d4 {[%clk 0:02:59]}  Nf6 {[%clk 0:02:57]} 3. c4 {[%clk 0:03:00]}  e6 {[%clk 0:02:58]} 4. Nc3 {[%clk 0:03:00]}  Be7 {[%clk 0:02:58]} 5. e3 {[%clk 0:03:01]}  O-O {[%clk 0:02:58]} 6. Bd3 {[%clk 0:03:01]}  dxc4 {[%clk 0:02:58]} 7. Bxc4 {[%clk 0:03:02]}  a6 {[%clk 0:02:59]} 8. O-O {[%clk 0:03:00]}  b5 {[%clk 0:02:59]} 9. Be2 {[%clk 0:03:00]}  Bb7 {[%clk 0:03:00]} 10. Ne5 {[%clk 0:03:00]}  c5 {[%clk 0:02:56]} 11. Bf3 {[%clk 0:03:00]}  Bxf3 {[%clk 0:02:53]} 12. Qxf3 {[%clk 0:02:59]}  Ra7 {[%clk 0:02:54]} 13. Rd1 {[%clk 0:02:47]}  cxd4 {[%clk 0:02:54]} 14. exd4 {[%clk 0:02:39]}  Nfd7 {[%clk 0:02:35]} 15. Be3 {[%clk 0:02:34]}  Nxe5 {[%clk 0:02:32]} 16. dxe5 {[%clk 0:02:34]}  Rd7 {[%clk 0:02:33]} 17. Ne4 {[%clk 0:02:16]}  Nc6 {[%clk 0:01:45]} 18. Nf6+ {[%clk 0:01:34]}  Bxf6 {[%clk 0:01:20]} 19. Rxd7 {[%clk 0:01:27]}  Nxe5 {[%clk 0:01:13]} 20. Rxd8 {[%clk 0:01:22]}  Nxf3+ {[%clk 0:01:14]} 21. gxf3 {[%clk 0:01:23]}  Rxd8 {[%clk 0:01:15]} 22. a4 {[%clk 0:01:12]}  b4 {[%clk 0:01:00]} 23. Rb1 {[%clk 0:01:06]}  b3 {[%clk 0:01:00]} 24. Rc1 {[%clk 0:00:56]}  h5 {[%clk 0:00:52]} 25. Kf1 {[%clk 0:00:45]}  Rb8 {[%clk 0:00:41]} 26. Rb1 {[%clk 0:00:37]}  Rb4 {[%clk 0:00:41]} 27. a5 {[%clk 0:00:37]}  Ra4 {[%clk 0:00:41]} 28. Ke2 {[%clk 0:00:35]}  Rxa5 {[%clk 0:00:39]} 29. Kd3 {[%clk 0:00:35]}  Ra2 {[%clk 0:00:28]} 30. Bc1 {[%clk 0:00:35]}  a5 {[%clk 0:00:27]} 31. Kc4 {[%clk 0:00:32]}  a4 {[%clk 0:00:26]} 32. f4 {[%clk 0:00:32]}  Kh7 {[%clk 0:00:25]} 33. Kd3 {[%clk 0:00:31]}  Kg6 {[%clk 0:00:24]} 34. Ke4 {[%clk 0:00:32]}  h4 {[%clk 0:00:22]} 35. h3 {[%clk 0:00:32]}  a3 {[%clk 0:00:17]} 36. bxa3 {[%clk 0:00:30]}  b2 {[%clk 0:00:18]} 37. Bxb2 {[%clk 0:00:18]}  Rxb2 {[%clk 0:00:19]} 38. Rg1+ {[%clk 0:00:17]}  Kh7 {[%clk 0:00:18]} 39. Rd1 {[%clk 0:00:15]}  Ra2 {[%clk 0:00:18]} 40. Ke3 {[%clk 0:00:12]}  Rxa3+ {[%clk 0:00:18]} 41. Ke2 {[%clk 0:00:13]}  Rxh3 {[%clk 0:00:17]} 42. Rd7 {[%clk 0:00:13]}  Kg6 {[%clk 0:00:17]} 43. Ra7 {[%clk 0:00:13]}  Rc3 {[%clk 0:00:17]} 44. Ra4 {[%clk 0:00:12]}  h3 {[%clk 0:00:17]} 45. Ra1 {[%clk 0:00:13]}  Rc2+ {[%clk 0:00:17]} 46. Kf3 {[%clk 0:00:13]}  Bxa1 {[%clk 0:00:18]} 47. Kg4 {[%clk 0:00:13]}  Rxf2 {[%clk 0:00:16]} 48. Kxh3 {[%clk 0:00:14]}  Rxf4 {[%clk 0:00:16]} 49. Kg3 {[%clk 0:00:15]}  Rf5 {[%clk 0:00:17]} 50. Kg4 {[%clk 0:00:15]}  Kf6 {[%clk 0:00:18]} 51. Kh3 {[%clk 0:00:16]}  e5 {[%clk 0:00:18]} 52. Kg4 {[%clk 0:00:17]}  e4 {[%clk 0:00:19]} 53. Kh4 {[%clk 0:00:18]}  e3 {[%clk 0:00:20]} 54. Kg4 {[%clk 0:00:18]}  e2 {[%clk 0:00:21]} 55. Kh3 {[%clk 0:00:19]}  e1=Q {[%clk 0:00:21]} 56. Kg4 {[%clk 0:00:20]}  Qe4+ {[%clk 0:00:22]} 57. Kh3 {[%clk 0:00:21]}  Rf3+ {[%clk 0:00:22]} 58. Kg2 {[%clk 0:00:22]}  Qe2+ {[%clk 0:00:23]} 59. Kh1 {[%clk 0:00:22]}  Rf1# {[%clk 0:00:24]} 0-1


[Site "https://www.chess.com"]

[Event "Titled Tuesday Blitz June 27 Late 2023"]
[White "Bilan, Danila"]
[Black "Fisher_TheGalactic"]
[WhiteFideId "24161918"]
[WhiteElo "2514"]
[BlackElo "2672"]
[Result "1-0"]
[Round "11"]
[TimeControl "180+2"]
[Date "2023.06.27"]
[WhiteClock "0:00:15"]
[BlackClock "0:00:59"]
[Board "53"]

1. d4 {[%clk 0:03:00]}  d5 {[%clk 0:03:00]} 2. Nf3 {[%clk 0:03:00]}  Nf6 {[%clk 0:02:57]} 3. c4 {[%clk 0:03:00]}  e6 {[%clk 0:02:57]} 4. Nc3 {[%clk 0:02:55]}  Be7 {[%clk 0:02:53]} 5. Bg5 {[%clk 0:02:53]}  O-O {[%clk 0:02:52]} 6. e3 {[%clk 0:02:53]}  h6 {[%clk 0:02:48]} 7. Bh4 {[%clk 0:02:52]}  Ne4 {[%clk 0:02:46]} 8. Bxe7 {[%clk 0:02:42]}  Qxe7 {[%clk 0:02:44]} 9. Nxe4 {[%clk 0:02:41]}  dxe4 {[%clk 0:02:45]} 10. Nd2 {[%clk 0:02:39]}  f5 {[%clk 0:02:45]} 11. g3 {[%clk 0:02:33]}  c5 {[%clk 0:02:43]} 12. Nb3 {[%clk 0:02:22]}  Nd7 {[%clk 0:02:38]} 13. Be2 {[%clk 0:02:14]}  e5 {[%clk 0:02:34]} 14. Nxc5 {[%clk 0:01:55]}  Nxc5 {[%clk 0:02:31]} 15. dxc5 {[%clk 0:01:56]}  f4 {[%clk 0:02:31]} 16. Qd5+ {[%clk 0:01:52]}  Kh8 {[%clk 0:02:27]} 17. Qxe4 {[%clk 0:01:52]}  Bf5 {[%clk 0:02:26]} 18. Qf3 {[%clk 0:01:39]}  fxg3 {[%clk 0:01:56]} 19. hxg3 {[%clk 0:01:22]}  Qxc5 {[%clk 0:01:51]} 20. Qd5 {[%clk 0:01:13]}  Qb4+ {[%clk 0:01:49]} 21. Qd2 {[%clk 0:01:11]}  Qb6 {[%clk 0:01:49]} 22. O-O-O {[%clk 0:01:00]}  Be4 {[%clk 0:01:44]} 23. Rh4 {[%clk 0:00:52]}  Bc6 {[%clk 0:01:29]} 24. f4 {[%clk 0:00:39]}  exf4 {[%clk 0:01:28]} 25. exf4 {[%clk 0:00:36]}  Rad8 {[%clk 0:01:28]} 26. Qc3 {[%clk 0:00:31]}  Rxd1+ {[%clk 0:01:27]} 27. Bxd1 {[%clk 0:00:32]}  Kg8 {[%clk 0:01:10]} 28. c5 {[%clk 0:00:31]}  Qc7 {[%clk 0:01:09]} 29. Bb3+ {[%clk 0:00:30]}  Kh7 {[%clk 0:01:08]} 30. Bc2+ {[%clk 0:00:29]}  Kg8 {[%clk 0:01:08]} 31. Qc4+ {[%clk 0:00:19]}  Kh8 {[%clk 0:01:07]} 32. Qd3 {[%clk 0:00:18]}  Kg8 {[%clk 0:01:06]} 33. Qh7+ {[%clk 0:00:18]}  Kf7 {[%clk 0:01:06]} 34. Rxh6 {[%clk 0:00:16]}  Be4 {[%clk 0:00:57]} 35. Qxe4 {[%clk 0:00:14]}  gxh6 {[%clk 0:00:57]} 36. Qh7+ {[%clk 0:00:14]}  Ke6 {[%clk 0:00:57]} 37. Qxc7 {[%clk 0:00:15]}  Re8 {[%clk 0:00:58]} 38. Qe5+ {[%clk 0:00:14]}  Kd7 {[%clk 0:00:58]} 39. Bf5+ {[%clk 0:00:15]}  Kd8 {[%clk 0:00:59]} 40. Qd6# {[%clk 0:00:15]} 1-0


[Site "https://www.chess.com"]